[Event "Torneo Nuevo Centro. Jornada 10"]
[Site "Chess.com"]
[Date "2020.08.21"]
[Round "5"]
[White "Miranda Calvo, Max Rodrigo"]
[Black "Ursariu, Nikolas Victor"]
[Result "0-1"]
[WhiteElo "1352"]
[BlackElo "1120"]
[TimeControl "180+2"]
[EndTime "11:26:20 PDT"]
[Termination "Victoria de NikolasVictor por abandono"]

1. e4 {[%clk 0:03:01.9]} 1... e5 {[%clk 0:02:59.7]} 2. Nf3 {[%clk 0:03:00.8]}
2... Nc6 {[%clk 0:03:00.8]} 3. Bc4 {[%clk 0:03:01.5]} 3... Bc5 {[%clk
0:03:00.9]} 4. c3 {[%clk 0:02:59.4]} 4... Nf6 {[%clk 0:02:59.3]} 5. d3 {[%clk
0:03:00.1]} 5... O-O {[%clk 0:02:57]} 6. Bg5 {[%clk 0:03:00.5]} 6... h6 {[%clk
0:02:54.1]} 7. Bxf6 {[%clk 0:02:58.7]} 7... Qxf6 {[%clk 0:02:52.4]} 8. Nbd2
{[%clk 0:02:58.2]} 8... d6 {[%clk 0:02:49.2]} 9. h3 {[%clk 0:02:53.3]} 9... Be6
{[%clk 0:02:36.5]} 10. Bxe6 {[%clk 0:02:48.7]} 10... fxe6 {[%clk 0:02:34.2]} 11.
O-O {[%clk 0:02:47.9]} 11... Qg6 {[%clk 0:02:22.3]} 12. Qb3 {[%clk 0:02:39.4]}
12... Bb6 {[%clk 0:02:06.1]} 13. Nh4 {[%clk 0:02:33.4]} 13... Qf6 {[%clk
0:02:04.5]} 14. Ndf3 {[%clk 0:02:32.6]} 14... g5 {[%clk 0:01:53.4]} 15. Nf5
{[%clk 0:02:26.6]} 15... Kh8 {[%clk 0:01:42.2]} 16. Ng3 {[%clk 0:02:20.8]} 16...
Qg6 {[%clk 0:01:39.1]} 17. Rfe1 {[%clk 0:02:13.3]} 17... g4 {[%clk 0:01:35.4]}
18. Nh4 {[%clk 0:02:06.4]} 18... Qg5 {[%clk 0:01:30.7]} 19. Qxe6 {[%clk
0:01:17.8]} 19... Qxh4 {[%clk 0:01:20]} 20. Nf5 {[%clk 0:01:17.7]} 20... Qf6
{[%clk 0:01:07.2]} 21. Qxf6+ {[%clk 0:01:06]} 21... Rxf6 {[%clk 0:01:06.5]} 22.
hxg4 {[%clk 0:01:07.2]} 22... Rg6 {[%clk 0:01:04.2]} 23. Kh2 {[%clk 0:01:03.4]}
23... Rxg4 {[%clk 0:01:01.8]} 24. Rh1 {[%clk 0:00:58.9]} 24... Bxf2 {[%clk
0:00:56.6]} 25. Raf1 {[%clk 0:00:53.1]} 25... Bg3+ {[%clk 0:00:51.4]} 26. Nxg3
{[%clk 0:00:50.9]} 26... Rag8 {[%clk 0:00:47.3]} 27. Rf3 {[%clk 0:00:43.6]}
27... Ne7 {[%clk 0:00:37.2]} 28. Kg1 {[%clk 0:00:28.9]} 28... Rxg3 {[%clk
0:00:31.1]} 29. Rxh6+ {[%clk 0:00:25.9]} 29... Kg7 {[%clk 0:00:28.9]} 30. Rxg3+
{[%clk 0:00:20.4]} 30... Kxh6 {[%clk 0:00:27.7]} 31. Rxg8 {[%clk 0:00:20.1]}
31... Nxg8 {[%clk 0:00:26.9]} 32. Kf2 {[%clk 0:00:21.2]} 32... Nf6 {[%clk
0:00:18.8]} 33. Kg3 {[%clk 0:00:21.3]} 33... Kg5 {[%clk 0:00:16.6]} 34. Kf3
{[%clk 0:00:20.9]} 34... Ng4 {[%clk 0:00:16.3]} 35. g3 {[%clk 0:00:21.6]} 35...
Nh2+ {[%clk 0:00:15.9]} 36. Kg2 {[%clk 0:00:20.8]} 36... Ng4 {[%clk 0:00:15.9]}
37. b3 {[%clk 0:00:18.3]} 37... Ne3+ {[%clk 0:00:15.4]} 38. Kf3 {[%clk
0:00:19.1]} 38... Nd1 {[%clk 0:00:13.6]} 39. c4 {[%clk 0:00:16.6]} 39... Nc3
{[%clk 0:00:15.5]} 40. Ke3 {[%clk 0:00:13.1]} 40... Nxa2 {[%clk 0:00:15.1]} 41.
b4 {[%clk 0:00:12.8]} 41... Nxb4 {[%clk 0:00:15.4]} 42. Kd2 {[%clk 0:00:13.2]}
42... Kg4 {[%clk 0:00:13.5]} 43. Kc3 {[%clk 0:00:14.2]} 43... Nc6 {[%clk
0:00:12]} 44. c5 {[%clk 0:00:10.3]} 44... dxc5 {[%clk 0:00:09.9]} 45. Kc4 {[%clk
0:00:11.4]} 45... Kxg3 {[%clk 0:00:11.8]} 46. Kxc5 {[%clk 0:00:11.8]} 46... Kf4
{[%clk 0:00:13.5]} 47. Kd5 {[%clk 0:00:12.4]} 47... a5 {[%clk 0:00:13.5]} 48.
Kc4 {[%clk 0:00:12.1]} 48... Ke3 {[%clk 0:00:12.8]} 49. Kc3 {[%clk 0:00:10.1]}
49... a4 {[%clk 0:00:12.3]} 50. Kc4 {[%clk 0:00:04.3]} 50... a3 {[%clk
0:00:11.6]} 51. Kb3 {[%clk 0:00:05.3]} 51... Kxd3 {[%clk 0:00:11.4]} 52. Kxa3
{[%clk 0:00:06]} 52... Kxe4 {[%clk 0:00:13.3]} 53. Kb3 {[%clk 0:00:06.7]} 53...
Kd3 {[%clk 0:00:13.3]} 54. Kb2 {[%clk 0:00:04.8]} 54... Kd2 {[%clk 0:00:12.4]}
0

[Event "Torneo Nuevo Centro. Jornada 10"]
[Site "Chess.com"]
[Date "2020.08.21"]
[Round "5"]
[White "Gracia Calvo, Andrés"]
[Black "Donate Peris, Jose Manuel"]
[Result "1-0"]
[WhiteElo "1809"]
[BlackElo "1532"]
[TimeControl "180+2"]
[EndTime "11:26:22 PDT"]
[Termination "Victoria de andresjaque21 por tiempo"]

1. d4 {[%clk 0:03:01.9]} 1... Nf6 {[%clk 0:02:59.7]} 2. Nf3 {[%clk 0:03:02.6]}
2... d5 {[%clk 0:02:59.2]} 3. Bf4 {[%clk 0:03:03.4]} 3... e6 {[%clk 0:02:58.3]}
4. e3 {[%clk 0:03:04.2]} 4... c5 {[%clk 0:02:58.1]} 5. c3 {[%clk 0:03:03.9]}
5... Nc6 {[%clk 0:02:56.2]} 6. Nbd2 {[%clk 0:03:04.5]} 6... Bd7 {[%clk
0:02:55.1]} 7. Bd3 {[%clk 0:03:04.2]} 7... c4 {[%clk 0:02:53.8]} 8. Bc2 {[%clk
0:03:04.4]} 8... b5 {[%clk 0:02:50]} 9. h4 {[%clk 0:03:01.9]} 9... h6 {[%clk
0:02:48.1]} 10. e4 {[%clk 0:02:55]} 10... dxe4 {[%clk 0:02:43.4]} 11. Nxe4
{[%clk 0:02:54.9]} 11... Nd5 {[%clk 0:02:42.2]} 12. Bg3 {[%clk 0:02:41]} 12...
Be7 {[%clk 0:02:30.7]} 13. Ne5 {[%clk 0:02:30.6]} 13... Nxe5 {[%clk 0:02:26.7]}
14. dxe5 {[%clk 0:02:28.1]} 14... Bc6 {[%clk 0:02:14.9]} 15. Qe2 {[%clk
0:02:20.2]} 15... O-O {[%clk 0:02:05.4]} 16. Rd1 {[%clk 0:02:06.4]} 16... Qb6
{[%clk 0:01:54.6]} 17. O-O {[%clk 0:01:55.9]} 17... Rad8 {[%clk 0:01:42.8]} 18.
Qh5 {[%clk 0:01:46.1]} 18... f5 {[%clk 0:01:24.7]} 19. exf6 {[%clk 0:01:38.8]}
19... Nxf6 {[%clk 0:01:24]} 20. Nxf6+ {[%clk 0:01:37.1]} 20... Bxf6 {[%clk
0:01:19]} 21. Qg6 {[%clk 0:01:27.4]} 21... Rxd1 {[%clk 0:01:09.8]} 22. Rxd1
{[%clk 0:01:25.1]} 22... Be8 {[%clk 0:01:03.9]} 23. Qh7+ {[%clk 0:01:13.5]}
23... Kf7 {[%clk 0:01:04.5]} 24. Bg6+ {[%clk 0:01:08.5]} 24... Ke7 {[%clk
0:01:05]} 25. Bxe8 {[%clk 0:01:07.8]} 25... Kxe8 {[%clk 0:00:59.8]} 26. Bd6
{[%clk 0:01:01.8]} 26... Be7 {[%clk 0:00:55.8]} 27. Bxe7 {[%clk 0:01:00.6]}
27... Qxf2+ {[%clk 0:00:55]} 28. Kh1 {[%clk 0:00:59.8]} 28... Kxe7 {[%clk
0:00:50]} 29. Qxg7+ {[%clk 0:00:52.7]} 29... Rf7 {[%clk 0:00:50.2]} 30. Qxh6
{[%clk 0:00:52]} 30... Rf6 {[%clk 0:00:43.2]} 31. Qg5 {[%clk 0:00:50.2]} 31...
a6 {[%clk 0:00:22.9]} 32. h5 {[%clk 0:00:36.8]} 32... a5 {[%clk 0:00:19.7]} 33.
h6 {[%clk 0:00:36]} 33... Qf5 {[%clk 0:00:19.5]} 34. Qxf5 {[%clk 0:00:33.8]}
34... exf5 {[%clk 0:00:18.8]} 35. Rd5 {[%clk 0:00:32.1]} 35... Rxh6+ {[%clk
0:00:18.5]} 36. Kg1 {[%clk 0:00:30.2]} 36... b4 {[%clk 0:00:18.5]} 37. Rxa5
{[%clk 0:00:28.6]} 37... bxc3 {[%clk 0:00:18.2]} 38. bxc3 {[%clk 0:00:29.3]}
38... Rd6 {[%clk 0:00:16.5]} 39. Rxf5 {[%clk 0:00:28.5]} 39... Rd3 {[%clk
0:00:15.3]} 40. Rf3 {[%clk 0:00:25.7]} 40... Rd2 {[%clk 0:00:14.9]} 41. Kh2
{[%clk 0:00:24.1]} 41... Rxa2 {[%clk 0:00:14.8]} 42. Rf4 {[%clk 0:00:24.4]}
42... Ra4 {[%clk 0:00:13.4]} 43. g4 {[%clk 0:00:24.5]} 43... Ke6 {[%clk
0:00:13.6]} 44. Kg3 {[%clk 0:00:25.2]} 44... Ke5 {[%clk 0:00:13.6]} 45. Rd4
{[%clk 0:00:25.2]} 45... Ra1 {[%clk 0:00:07.1]} 46. Rxc4 {[%clk 0:00:22.4]}
46... Rg1+ {[%clk 0:00:07.5]} 47. Kf3 {[%clk 0:00:20.6]} 47... Rf1+ {[%clk
0:00:07.2]} 48. Ke2 {[%clk 0:00:20.8]} 48... Rg1 {[%clk 0:00:07.7]} 49. Ke3
{[%clk 0:00:21.1]} 49... Kd5 {[%clk 0:00:08.1]} 50. Rf4 {[%clk 0:00:20.4]} 50...
Ke5 {[%clk 0:00:08.1]} 51. Ra4 {[%clk 0:00:20.2]} 51... Rg3+ {[%clk 0:00:07.3]}
52. Kd2 {[%clk 0:00:19.8]} 52... Kd5 {[%clk 0:00:06.3]} 53. Ra5+ {[%clk
0:00:18.2]} 53... Kc4 {[%clk 0:00:06.3]} 54. Ra4+ {[%clk 0:00:18.5]} 54... Kd5
{[%clk 0:00:03.7]} 55. Rd4+ {[%clk 0:00:18.8]} 55... Ke5 {[%clk 0:00:03.4]} 56.
Ra4 {[%clk 0:00:17.9]} 1

[Event "Torneo Nuevo Centro. Jornada 10"]
[Site "Chess.com"]
[Date "2020.08.21"]
[Round "5"]
[White "Pardo Ruiz, Carlos"]
[Black "Salvador Buiza, Victor"]
[Result "0-1"]
[WhiteElo "1684"]
[BlackElo "1886"]
[TimeControl "180+2"]
[EndTime "11:26:26 PDT"]
[Termination "Victoria de TERROROSCURO666 por jaque mate"]

1. e4 {[%clk 0:03:01.9]} 1... e6 {[%clk 0:02:57.4]} 2. d4 {[%clk 0:03:02.1]}
2... d5 {[%clk 0:02:58.3]} 3. exd5 {[%clk 0:03:03.5]} 3... exd5 {[%clk 0:02:59]}
4. Nf3 {[%clk 0:03:04.5]} 4... Bg4 {[%clk 0:02:58.6]} 5. h3 {[%clk 0:03:03]}
5... Bxf3 {[%clk 0:02:59.2]} 6. Qxf3 {[%clk 0:03:03.4]} 6... Nf6 {[%clk
0:03:01.1]} 7. Be2 {[%clk 0:02:57.7]} 7... Be7 {[%clk 0:02:59.1]} 8. O-O {[%clk
0:02:55.7]} 8... O-O {[%clk 0:02:59.6]} 9. c3 {[%clk 0:02:54.2]} 9... Nbd7
{[%clk 0:02:56.3]} 10. Bf4 {[%clk 0:02:54.1]} 10... c6 {[%clk 0:02:53.2]} 11.
Re1 {[%clk 0:02:51.6]} 11... Re8 {[%clk 0:02:53.3]} 12. Nd2 {[%clk 0:02:47.3]}
12... Nb6 {[%clk 0:02:46.6]} 13. Bf1 {[%clk 0:02:43.3]} 13... Bd6 {[%clk
0:02:43.7]} 14. Qg3 {[%clk 0:02:41]} 14... Bxf4 {[%clk 0:02:39.8]} 15. Qxf4
{[%clk 0:02:42.9]} 15... Na4 {[%clk 0:02:30.2]} 16. Rxe8+ {[%clk 0:02:24.5]}
16... Qxe8 {[%clk 0:02:24.9]} 17. Rb1 {[%clk 0:02:25.1]} 17... Ne4 {[%clk
0:02:22.1]} 18. Nxe4 {[%clk 0:02:24.7]} 18... Qxe4 {[%clk 0:02:03.9]} 19. Qxe4
{[%clk 0:02:25.1]} 19... dxe4 {[%clk 0:02:04.9]} 20. Be2 {[%clk 0:02:25.4]}
20... Re8 {[%clk 0:02:02.5]} 21. Kf1 {[%clk 0:02:15.5]} 21... f5 {[%clk
0:02:02.9]} 22. Bd1 {[%clk 0:02:08.5]} 22... Nb6 {[%clk 0:02:01.3]} 23. Bb3+
{[%clk 0:02:07.8]} 23... Kf8 {[%clk 0:02:00.1]} 24. Ke2 {[%clk 0:02:06.4]} 24...
f4 {[%clk 0:01:59.7]} 25. Rf1 {[%clk 0:02:01.2]} 25... Ke7 {[%clk 0:01:59.8]}
26. g3 {[%clk 0:01:58.5]} 26... f3+ {[%clk 0:02:00.1]} 27. Ke3 {[%clk
0:01:58.2]} 27... Kf6 {[%clk 0:01:59.9]} 28. Kf4 {[%clk 0:01:52.4]} 28... a5
{[%clk 0:01:50.5]} 29. a3 {[%clk 0:01:46]} 29... g5+ {[%clk 0:01:36.4]} 30. Ke3
{[%clk 0:01:44.4]} 30... h5 {[%clk 0:01:21.9]} 31. Rg1 {[%clk 0:01:25.7]} 31...
Nc8 {[%clk 0:01:12.3]} 32. g4 {[%clk 0:00:57.1]} 32... h4 {[%clk 0:01:10.1]} 33.
Bc2 {[%clk 0:00:56.1]} 33... Nd6 {[%clk 0:01:03.9]} 34. b3 {[%clk 0:00:53.4]}
34... a4 {[%clk 0:01:01.7]} 35. Re1 {[%clk 0:00:38.2]} 35... axb3 {[%clk
0:00:56.3]} 36. Bxb3 {[%clk 0:00:40.1]} 36... Nb5 {[%clk 0:00:52.6]} 37. c4
{[%clk 0:00:35.6]} 37... Nc7 {[%clk 0:00:35.4]} 38. d5 {[%clk 0:00:26.9]} 38...
cxd5 {[%clk 0:00:29.2]} 39. cxd5 {[%clk 0:00:28.8]} 39... Ke5 {[%clk 0:00:30.2]}
40. Rd1 {[%clk 0:00:21.9]} 40... Nb5 {[%clk 0:00:18.6]} 41. a4 {[%clk
0:00:19.8]} 41... Nd6 {[%clk 0:00:16.4]} 42. Rd4 {[%clk 0:00:18.3]} 42... Rc8
{[%clk 0:00:16.1]} 43. Rb4 {[%clk 0:00:17.2]} 43... Rc3+ {[%clk 0:00:16.1]} 44.
Kd2 {[%clk 0:00:18]} 44... Rd3+ {[%clk 0:00:16.6]} 45. Ke1 {[%clk 0:00:17.9]}
45... Rc3 {[%clk 0:00:16.4]} 46. Rb6 {[%clk 0:00:16.5]} 46... Rc1+ {[%clk
0:00:15.8]} 47. Kd2 {[%clk 0:00:17.3]} 47... Rh1 {[%clk 0:00:16.6]} 48. a5
{[%clk 0:00:15.8]} 48... Rxh3 {[%clk 0:00:17.2]} 49. a6 {[%clk 0:00:16.2]} 49...
bxa6 {[%clk 0:00:17.7]} 50. Rxa6 {[%clk 0:00:18.1]} 50... Rh1 {[%clk 0:00:17.9]}
51. Ba4 {[%clk 0:00:16.8]} 51... Rb1 {[%clk 0:00:15.5]} 52. Bc6 {[%clk
0:00:15.6]} 52... Rb2+ {[%clk 0:00:15.9]} 53. Kc3 {[%clk 0:00:14]} 53... Rxf2
{[%clk 0:00:16.1]} 54. Ra8 {[%clk 0:00:15.4]} 54... h3 {[%clk 0:00:16.1]} 55.
Rh8 {[%clk 0:00:16.7]} 55... h2 {[%clk 0:00:16.8]} 56. Bd7 {[%clk 0:00:16.9]}
56... Rg2 {[%clk 0:00:16.3]} 57. Bc6 {[%clk 0:00:14.4]} 57... f2 {[%clk
0:00:17]} 58. Ba8 {[%clk 0:00:12.8]} 58... f1=Q {[%clk 0:00:16.9]} 59. Kb4
{[%clk 0:00:14.2]} 59... Qb1+ {[%clk 0:00:17.4]} 60. Kc5 {[%clk 0:00:14.8]}
60... Rc2# {[%clk 0:00:18.1]} 0

[Event "Torneo Nuevo Centro. Jornada 10"]
[Site "Chess.com"]
[Date "2020.08.21"]
[Round "5"]
[White "Ortiz Benavent, Alba"]
[Black "Roca Cruz, Rafael"]
[Result "0-1"]
[WhiteElo "1207"]
[BlackElo "1820"]
[TimeControl "180+2"]
[EndTime "11:26:35 PDT"]
[Termination "Victoria de RafaRocaCruz por abandono"]

1. d4 {[%clk 0:03:01.9]} 1... b5 {[%clk 0:03:00.7]} 2. Nf3 {[%clk 0:03:01.9]}
2... Bb7 {[%clk 0:02:58.6]} 3. Bf4 {[%clk 0:03:01.1]} 3... e6 {[%clk 0:02:59]}
4. e3 {[%clk 0:03:01.8]} 4... a6 {[%clk 0:02:59.7]} 5. c3 {[%clk 0:03:02.1]}
5... Nf6 {[%clk 0:02:59.7]} 6. Bd3 {[%clk 0:03:02.4]} 6... Be7 {[%clk
0:02:58.1]} 7. Nbd2 {[%clk 0:03:02.5]} 7... d6 {[%clk 0:02:58.6]} 8. Bg3 {[%clk
0:02:56.4]} 8... O-O {[%clk 0:02:58.7]} 9. O-O {[%clk 0:02:55.9]} 9... Nh5
{[%clk 0:02:59.3]} 10. Re1 {[%clk 0:02:54.4]} 10... Nd7 {[%clk 0:02:57.3]} 11.
e4 {[%clk 0:02:46.1]} 11... Nxg3 {[%clk 0:02:49.3]} 12. hxg3 {[%clk 0:02:43.3]}
12... c5 {[%clk 0:02:50]} 13. Qb1 {[%clk 0:02:19.9]} 13... g6 {[%clk 0:02:44.2]}
14. a3 {[%clk 0:02:04]} 14... Rc8 {[%clk 0:02:40.9]} 15. Bc2 {[%clk 0:02:02.3]}
15... Nf6 {[%clk 0:02:32]} 16. e5 {[%clk 0:01:54.1]} 16... Ng4 {[%clk 0:02:22]}
17. Re2 {[%clk 0:01:48.8]} 17... Qc7 {[%clk 0:02:16.5]} 18. exd6 {[%clk
0:01:47.7]} 18... Bxd6 {[%clk 0:02:13.1]} 19. Be4 {[%clk 0:01:46.3]} 19... Nf6
{[%clk 0:01:40.7]} 20. Bxb7 {[%clk 0:01:45]} 20... Qxb7 {[%clk 0:01:42.6]} 21.
Ne4 {[%clk 0:01:41.1]} 21... Nxe4 {[%clk 0:01:42.3]} 22. Qxe4 {[%clk 0:01:40.4]}
22... Qxe4 {[%clk 0:01:38.9]} 23. Rxe4 {[%clk 0:01:40.4]} 23... Rfd8 {[%clk
0:01:34.3]} 24. Kf1 {[%clk 0:01:30.3]} 24... Bf8 {[%clk 0:01:23.9]} 25. Ke1
{[%clk 0:01:26.6]} 25... Bg7 {[%clk 0:00:44.9]} 26. Rd1 {[%clk 0:01:23]} 26...
h6 {[%clk 0:00:26.5]} 27. dxc5 {[%clk 0:01:22.6]} 27... Rxd1+ {[%clk 0:00:26.6]}
28. Kxd1 {[%clk 0:01:22]} 28... Rxc5 {[%clk 0:00:28.5]} 29. Ke2 {[%clk
0:01:15.5]} 29... Rd5 {[%clk 0:00:27.6]} 30. Nd4 {[%clk 0:00:59]} 30... Kf8
{[%clk 0:00:27.3]} 31. Ke1 {[%clk 0:00:46.5]} 31... Ke7 {[%clk 0:00:21.6]} 32.
Nc6+ {[%clk 0:00:45.3]} 32... Kd6 {[%clk 0:00:16.4]} 33. Nd4 {[%clk 0:00:45.4]}
33... Bxd4 {[%clk 0:00:14.6]} 34. Rxd4 {[%clk 0:00:44.2]} 34... Rxd4 {[%clk
0:00:14.2]} 35. cxd4 {[%clk 0:00:44.7]} 35... Kd5 {[%clk 0:00:16.1]} 36. Kd2
{[%clk 0:00:45.2]} 36... Kxd4 {[%clk 0:00:18]} 37. f3 {[%clk 0:00:45.6]} 37...
e5 {[%clk 0:00:19.2]} 38. g4 {[%clk 0:00:45.6]} 38... f5 {[%clk 0:00:18.6]} 39.
gxf5 {[%clk 0:00:43.5]} 39... gxf5 {[%clk 0:00:19.7]} 40. g3 {[%clk 0:00:42.5]}
40... h5 {[%clk 0:00:20]} 41. Ke2 {[%clk 0:00:34.5]} 41... a5 {[%clk 0:00:20.7]}
42. Kd2 {[%clk 0:00:34.9]} 42... b4 {[%clk 0:00:21.8]} 43. a4 {[%clk 0:00:33.5]}
43... Kc4 {[%clk 0:00:19.3]} 44. Kc2 {[%clk 0:00:28.4]} 44... e4 {[%clk
0:00:16.7]} 45. b3+ {[%clk 0:00:28.3]} 45... Kd4 {[%clk 0:00:17.1]} 46. f4
{[%clk 0:00:20.9]} 46... e3 {[%clk 0:00:16.7]} 47. Kd1 {[%clk 0:00:21]} 47...
Kd3 {[%clk 0:00:16.5]} 48. Ke1 {[%clk 0:00:19.3]} 48... e2 {[%clk 0:00:17.3]}
49. Kf2 {[%clk 0:00:15]} 49... Kd2 {[%clk 0:00:14.4]} 50. Kf3 {[%clk 0:00:14.7]}
50... e1=Q {[%clk 0:00:14.8]} 51. g4 {[%clk 0:00:15.7]} 51... Qe2+ {[%clk
0:00:10.7]} 52. Kg3 {[%clk 0:00:15.4]} 52... Qxg4+ {[%clk 0:00:11.5]} 53. Kh2
{[%clk 0:00:14.5]} 53... Qxf4+ {[%clk 0:00:12]} 54. Kh1 {[%clk 0:00:14.5]} 54...
Qh6 {[%clk 0:00:12.3]} 55. Kh2 {[%clk 0:00:14.9]} 55... f4 {[%clk 0:00:13.5]}
56. Kh1 {[%clk 0:00:15.2]} 56... f3 {[%clk 0:00:13.1]} 0

[Event "Torneo Nuevo Centro. Jornada 10"]
[Site "Chess.com"]
[Date "2020.08.21"]
[Round "5"]
[White "Gil López, Alejandro"]
[Black "Bosch Jordà, Ricard"]
[Result "1-0"]
[WhiteElo "2215"]
[BlackElo "1938"]
[TimeControl "180+2"]
[EndTime "11:26:49 PDT"]
[Termination "Victoria de AglVal0313 por tiempo"]

1. e4 {[%clk 0:03:01.6]} 1... c5 {[%clk 0:03:01.4]} 2. Nf3 {[%clk 0:02:47.3]}
2... Nc6 {[%clk 0:03:02.3]} 3. c3 {[%clk 0:02:47.8]} 3... Nf6 {[%clk 0:03:02.9]}
4. e5 {[%clk 0:02:48.3]} 4... Nd5 {[%clk 0:03:04.3]} 5. d4 {[%clk 0:02:50.2]}
5... cxd4 {[%clk 0:03:04.9]} 6. cxd4 {[%clk 0:02:51.3]} 6... d6 {[%clk
0:03:03.9]} 7. Bc4 {[%clk 0:02:50.8]} 7... dxe5 {[%clk 0:03:04.8]} 8. dxe5
{[%clk 0:02:50.6]} 8... Nb6 {[%clk 0:03:06.1]} 9. Qxd8+ {[%clk 0:02:48.7]} 9...
Nxd8 {[%clk 0:03:08]} 10. Bb5+ {[%clk 0:02:48.5]} 10... Bd7 {[%clk 0:03:08.1]}
11. Bxd7+ {[%clk 0:02:49.3]} 11... Nxd7 {[%clk 0:03:10]} 12. Nc3 {[%clk
0:02:45.2]} 12... g6 {[%clk 0:03:10]} 13. O-O {[%clk 0:02:32]} 13... Bg7 {[%clk
0:03:09.6]} 14. Re1 {[%clk 0:02:20]} 14... O-O {[%clk 0:03:09.3]} 15. Bg5 {[%clk
0:02:15.5]} 15... Re8 {[%clk 0:02:38.7]} 16. Nd5 {[%clk 0:02:11.2]} 16... Ne6
{[%clk 0:02:16.1]} 17. Bxe7 {[%clk 0:02:11.3]} 17... Rac8 {[%clk 0:01:53.2]} 18.
Bf6 {[%clk 0:02:00.5]} 18... Nxf6 {[%clk 0:01:49.3]} 19. exf6 {[%clk 0:02:00.3]}
19... Bf8 {[%clk 0:01:41.4]} 20. Ne5 {[%clk 0:02:01]} 20... Rc2 {[%clk 0:01:34]}
21. Rab1 {[%clk 0:01:52]} 21... Bc5 {[%clk 0:01:24.9]} 22. Rf1 {[%clk
0:01:49.4]} 22... Nd4 {[%clk 0:01:14.1]} 23. Nd3 {[%clk 0:01:42.8]} 23... Ne2+
{[%clk 0:01:10.5]} 24. Kh1 {[%clk 0:01:42.1]} 24... Rd8 {[%clk 0:00:37.1]} 25.
Nxc5 {[%clk 0:01:25.1]} 25... Rxd5 {[%clk 0:00:21.8]} 26. Nxb7 {[%clk
0:01:11.6]} 26... Rc7 {[%clk 0:00:19]} 27. Rfd1 {[%clk 0:01:05.2]} 27... Nd4
{[%clk 0:00:13.2]} 28. Na5 {[%clk 0:00:34.1]} 28... Rxa5 {[%clk 0:00:13.8]} 29.
Rxd4 {[%clk 0:00:33.2]} 29... h5 {[%clk 0:00:15.3]} 30. a3 {[%clk 0:00:31.1]}
30... Rf5 {[%clk 0:00:15.7]} 31. f3 {[%clk 0:00:27.3]} 31... Rxf6 {[%clk
0:00:16.4]} 32. h3 {[%clk 0:00:20.4]} 32... Rc2 {[%clk 0:00:16.3]} 33. Rd7
{[%clk 0:00:17.2]} 33... Re6 {[%clk 0:00:16]} 34. b4 {[%clk 0:00:09.8]} 34...
Ree2 {[%clk 0:00:12.9]} 35. Rg1 {[%clk 0:00:10.5]} 35... a6 {[%clk 0:00:12.7]}
36. Rd6 {[%clk 0:00:09.7]} 36... a5 {[%clk 0:00:09.5]} 37. bxa5 {[%clk
0:00:10.2]} 37... Ra2 {[%clk 0:00:09.9]} 38. a6 {[%clk 0:00:10.6]} 38... Rxa3
{[%clk 0:00:10.7]} 39. Rb1 {[%clk 0:00:07.9]} 39... Raa2 {[%clk 0:00:05.7]} 40.
Rg1 {[%clk 0:00:08.8]} 40... Re8 {[%clk 0:00:04.8]} 41. Rgd1 {[%clk 0:00:08.1]}
41... Ra8 {[%clk 0:00:03.4]} 42. Rd8+ {[%clk 0:00:07.3]} 42... Rxd8 {[%clk
0:00:04.2]} 43. Rxd8+ {[%clk 0:00:09.2]} 43... Kg7 {[%clk 0:00:05.8]} 44. Ra8
{[%clk 0:00:11.1]} 44... Kf6 {[%clk 0:00:05.9]} 45. Kh2 {[%clk 0:00:12.3]} 45...
Kg5 {[%clk 0:00:04.7]} 46. Kg3 {[%clk 0:00:06.3]} 46... h4+ {[%clk 0:00:04]} 47.
Kh2 {[%clk 0:00:07.9]} 47... f6 {[%clk 0:00:04.6]} 48. a7 {[%clk 0:00:07.6]}
48... Kf4 {[%clk 0:00:03.6]} 49. Rf8 {[%clk 0:00:07.7]} 49... Rxa7 {[%clk
0:00:03.6]} 50. Rxf6+ {[%clk 0:00:08.6]} 50... Kg5 {[%clk 0:00:05.2]} 51. Rb6
{[%clk 0:00:09.9]} 51... Ra2 {[%clk 0:00:03.4]} 52. Rb5+ {[%clk 0:00:10.2]}
52... Kh6 {[%clk 0:00:04.3]} 53. Rb4 {[%clk 0:00:10.9]} 53... g5 {[%clk
0:00:04.5]} 54. Rb6+ {[%clk 0:00:08.9]} 54... Kh5 {[%clk 0:00:04.8]} 55. Rf6
{[%clk 0:00:07.6]} 55... Rb2 {[%clk 0:00:03.3]} 56. Rf5 {[%clk 0:00:07.5]} 56...
Kg6 {[%clk 0:00:03.5]} 57. Rc5 {[%clk 0:00:08]} 57... Re2 {[%clk 0:00:03.1]} 58.
Rc4 {[%clk 0:00:08.9]} 58... Rd2 {[%clk 0:00:03.1]} 59. Rg4 {[%clk 0:00:08.2]}
1